[Event "*** Titled Tuesday Blitz"]
[Site "Chess.com"]
[Date "2019.08.06"]
[Round "8"]
[White "I-Mesquita"]
[Black "albi1999"]
[Result "0-1"]
[WhiteElo "2674"]
[BlackElo "2505"]
[TimeControl "180+2"]
[EndTime "14:57:20 PDT"]
[Termination "albi1999 won by resignation"]

1. Nf3 {[%clk 0:03:01.6]} 1... d5 {[%clk 0:03:00.7]} 2. g3 {[%clk 0:03:01.6]}
2... Bg4 {[%clk 0:03:01.4]} 3. Bg2 {[%clk 0:03:01.9]} 3... Nd7 {[%clk 0:03:02]}
4. O-O {[%clk 0:03:03.4]} 4... c6 {[%clk 0:03:01.7]} 5. d4 {[%clk 0:03:04.1]}
5... e6 {[%clk 0:03:02.5]} 6. Nbd2 {[%clk 0:03:04.8]} 6... Ngf6 {[%clk
0:03:03.5]} 7. c3 {[%clk 0:03:04.6]} 7... Be7 {[%clk 0:02:59.6]} 8. Re1 {[%clk
0:03:05.7]} 8... O-O {[%clk 0:03:01]} 9. e4 {[%clk 0:03:01.9]} 9... h6 {[%clk
0:03:02]} 10. h3 {[%clk 0:02:56]} 10... Bh5 {[%clk 0:02:57]} 11. Qb3 {[%clk
0:02:39.6]} 11... Qb6 {[%clk 0:02:55.7]} 12. e5 {[%clk 0:02:21.4]} 12... Ne8
{[%clk 0:02:55.5]} 13. Nf1 {[%clk 0:02:13.5]} 13... c5 {[%clk 0:02:55.5]} 14.
Be3 {[%clk 0:02:10.7]} 14... Nc7 {[%clk 0:02:50.9]} 15. g4 {[%clk 0:01:46.6]}
15... Bg6 {[%clk 0:02:50.9]} 16. Ng3 {[%clk 0:01:48.2]} 16... cxd4 {[%clk
0:02:50.8]} 17. cxd4 {[%clk 0:01:44.2]} 17... Qxb3 {[%clk 0:02:50.1]} 18. axb3
{[%clk 0:01:44.8]} 18... a6 {[%clk 0:02:47.5]} 19. Rec1 {[%clk 0:01:23.1]} 19...
Rac8 {[%clk 0:02:47.9]} 20. Bf1 {[%clk 0:01:21.3]} 20... Nb8 {[%clk 0:02:46.5]}
21. h4 {[%clk 0:01:07.9]} 21... Nc6 {[%clk 0:02:45.1]} 22. h5 {[%clk 0:01:09]}
22... Bh7 {[%clk 0:02:34.1]} 23. Ne1 {[%clk 0:00:57.1]} 23... f6 {[%clk
0:02:26.2]} 24. f4 {[%clk 0:00:45.8]} 24... fxe5 {[%clk 0:02:26]} 25. fxe5
{[%clk 0:00:46.4]} 25... Bg5 {[%clk 0:02:20.4]} 26. Bxg5 {[%clk 0:00:42.3]}
26... hxg5 {[%clk 0:02:22.3]} 27. Ne2 {[%clk 0:00:16.3]} 27... Nb5 {[%clk
0:02:20.2]} 28. Rd1 {[%clk 0:00:15.4]} 28... Rf7 {[%clk 0:02:09.9]} 29. Bg2
{[%clk 0:00:16.4]} 29... Rcf8 {[%clk 0:02:08]} 30. Rd2 {[%clk 0:00:17.8]} 30...
Rf2 {[%clk 0:02:05.6]} 31. Rad1 {[%clk 0:00:18.9]} 31... R2f7 {[%clk 0:01:27.2]}
32. Rc1 {[%clk 0:00:16.2]} 32... Rc8 {[%clk 0:01:22.3]} 33. Rc5 {[%clk
0:00:16.6]} 33... Rfc7 {[%clk 0:01:18.3]} 34. Nf3 {[%clk 0:00:17.5]} 34... Be4
{[%clk 0:01:00.1]} 35. Nxg5 {[%clk 0:00:16.7]} 35... Ncxd4 {[%clk 0:00:40.3]}
36. Rxc7 {[%clk 0:00:17.1]} 36... Nxe2+ {[%clk 0:00:40.3]} 37. Rxe2 {[%clk
0:00:18.5]} 37... Rxc7 {[%clk 0:00:37.7]} 38. Bxe4 {[%clk 0:00:18.2]} 38... dxe4
{[%clk 0:00:38.6]} 39. Nxe6 {[%clk 0:00:19.2]} 39... Re7 {[%clk 0:00:37.7]} 40.
Nc5 {[%clk 0:00:20.5]} 40... Rxe5 {[%clk 0:00:38.1]} 41. Nxe4 {[%clk 0:00:21.9]}
41... Nd4 {[%clk 0:00:38.4]} 42. Re3 {[%clk 0:00:19.9]} 42... Nxb3 {[%clk
0:00:36.8]} 43. Kf2 {[%clk 0:00:13]} 43... Nc5 {[%clk 0:00:33.8]} 44. Nd6 {[%clk
0:00:08.4]} 44... Rd5 {[%clk 0:00:25.4]} 45. Nf5 {[%clk 0:00:09.4]} 45... Rd7
{[%clk 0:00:21.1]} 46. Nh4 {[%clk 0:00:08.5]} 46... Nd3+ {[%clk 0:00:20.8]} 47.
Kg3 {[%clk 0:00:09.7]} 47... Nxb2 {[%clk 0:00:22.7]} 48. Re8+ {[%clk 0:00:07.4]}
48... Kf7 {[%clk 0:00:23]} 49. Rb8 {[%clk 0:00:09.1]} 49... Nc4 {[%clk
0:00:22.2]} 50. Ng6 {[%clk 0:00:10.2]} 50... a5 {[%clk 0:00:22.1]} 51. g5 {[%clk
0:00:11.1]} 51... a4 {[%clk 0:00:22.1]} 52. Kf4 {[%clk 0:00:12.1]} 52... a3
{[%clk 0:00:22.9]} 53. Ra8 {[%clk 0:00:10.7]} 53... Rd2 {[%clk 0:00:21.2]} 54.
Kf5 {[%clk 0:00:11.6]} 54... Rf2+ {[%clk 0:00:20.2]} 55. Ke4 {[%clk 0:00:12.6]}
55... a2 {[%clk 0:00:21.4]} 56. Nh8+ {[%clk 0:00:13.5]} 56... Ke7 {[%clk
0:00:20.3]} 57. Ng6+ {[%clk 0:00:15.2]} 57... Kd7 {[%clk 0:00:20.9]} 58. h6
{[%clk 0:00:16.4]} 58... gxh6 {[%clk 0:00:21.5]} 59. gxh6 {[%clk 0:00:17.8]}
59... Rh2 {[%clk 0:00:20.8]} 60. Nf4 {[%clk 0:00:18.1]} 60... b6 {[%clk
0:00:17.4]} 61. Ra7+ {[%clk 0:00:15.4]} 61... Kc6 {[%clk 0:00:17.2]} 62. Ne6
{[%clk 0:00:15.7]} 62... Na5 {[%clk 0:00:16.3]} 63. Nd4+ {[%clk 0:00:16.2]}
63... Kc5 {[%clk 0:00:16.3]} 64. Rc7+ {[%clk 0:00:13.7]} 64... Kb4 {[%clk
0:00:15.7]} 65. Rc1 {[%clk 0:00:15.1]} 65... Rxh6 {[%clk 0:00:12.5]} 66. Kd3
{[%clk 0:00:15.5]} 66... Rh3+ {[%clk 0:00:12.9]} 67. Kd2 {[%clk 0:00:16.3]}
67... Rh4 {[%clk 0:00:13.3]} 68. Nc2+ {[%clk 0:00:16.9]} 68... Kb3 {[%clk
0:00:12.5]} 69. Ne3 {[%clk 0:00:17.2]} 69... Rd4+ {[%clk 0:00:11.3]} 70. Ke2
{[%clk 0:00:17.9]} 70... Nc4 {[%clk 0:00:11.2]} 71. Nc2 {[%clk 0:00:14.9]} 71...
Rd2+ {[%clk 0:00:11.9]} 72. Ke1 {[%clk 0:00:15.5]} 72... Rxc2 {[%clk 0:00:13.8]}
73. Ra1 {[%clk 0:00:16.9]} 73... Kb2 {[%clk 0:00:14.6]} 74. Rd1 {[%clk
0:00:17.5]} 74... Rc1 {[%clk 0:00:14.3]} 0-1

[Event "*** Titled Tuesday Blitz"]
[Site "Chess.com"]
[Date "2019.08.06"]
[Round "8"]
[White "Frolik67"]
[Black "marianokar"]
[Result "1/2-1/2"]
[WhiteElo "2604"]
[BlackElo "2447"]
[TimeControl "180+2"]
[EndTime "14:57:30 PDT"]
[Termination "Game drawn - insufficient material"]

1. e4 {[%clk 0:03:01.9]} 1... c5 {[%clk 0:02:59.9]} 2. d4 {[%clk 0:03:01.9]}
2... e6 {[%clk 0:03:01.8]} 3. Nf3 {[%clk 0:03:02.1]} 3... cxd4 {[%clk
0:03:02.7]} 4. c3 {[%clk 0:03:03.6]} 4... dxc3 {[%clk 0:02:59.6]} 5. Nxc3 {[%clk
0:03:05.5]} 5... a6 {[%clk 0:03:00.8]} 6. Bc4 {[%clk 0:03:06.6]} 6... Qc7 {[%clk
0:02:58.1]} 7. Qe2 {[%clk 0:03:06.7]} 7... Nc6 {[%clk 0:02:57.5]} 8. O-O {[%clk
0:03:07.6]} 8... Nf6 {[%clk 0:02:58.3]} 9. Bg5 {[%clk 0:03:03.9]} 9... Ng4
{[%clk 0:02:55.2]} 10. Rfd1 {[%clk 0:03:04.6]} 10... Bc5 {[%clk 0:02:52.3]} 11.
Bh4 {[%clk 0:03:02.9]} 11... b5 {[%clk 0:02:36.6]} 12. Bb3 {[%clk 0:03:02.4]}
12... O-O {[%clk 0:02:30]} 13. Bg3 {[%clk 0:03:01.2]} 13... d6 {[%clk
0:02:29.9]} 14. Rac1 {[%clk 0:02:59.9]} 14... Nge5 {[%clk 0:02:26.9]} 15. Nxe5
{[%clk 0:02:58.1]} 15... Nxe5 {[%clk 0:02:23.6]} 16. Bxe5 {[%clk 0:02:41]} 16...
dxe5 {[%clk 0:02:24.1]} 17. Qh5 {[%clk 0:02:42.4]} 17... Qb6 {[%clk 0:02:08.7]}
18. Rd3 {[%clk 0:02:34.9]} 18... Bxf2+ {[%clk 0:01:59.1]} 19. Kh1 {[%clk
0:02:35.8]} 19... Be3 {[%clk 0:01:51.5]} 20. Rf1 {[%clk 0:02:33.1]} 20... g6
{[%clk 0:01:46.4]} 21. Qxe5 {[%clk 0:02:33.6]} 21... Bh6 {[%clk 0:01:44.5]} 22.
Rd6 {[%clk 0:02:14.7]} 22... Qb8 {[%clk 0:01:27.2]} 23. Qc5 {[%clk 0:01:20.7]}
23... Ra7 {[%clk 0:01:17.9]} 24. e5 {[%clk 0:01:16.1]} 24... Rc7 {[%clk
0:01:17.1]} 25. Qd4 {[%clk 0:01:15.5]} 25... Qa7 {[%clk 0:01:13.6]} 26. Qd3
{[%clk 0:01:08.9]} 26... Qc5 {[%clk 0:01:07.5]} 27. Qg3 {[%clk 0:01:03.8]} 27...
Bg7 {[%clk 0:01:05.3]} 28. Re1 {[%clk 0:00:58.7]} 28... Bb7 {[%clk 0:01:05.6]}
29. h3 {[%clk 0:00:57.5]} 29... b4 {[%clk 0:00:58]} 30. Na4 {[%clk 0:00:57.6]}
30... Qb5 {[%clk 0:00:56.2]} 31. Nb6 {[%clk 0:00:53.2]} 31... Rc6 {[%clk
0:00:36.8]} 32. Rxc6 {[%clk 0:00:51.5]} 32... Qxc6 {[%clk 0:00:36.6]} 33. Nc4
{[%clk 0:00:51.3]} 33... Qc5 {[%clk 0:00:35.8]} 34. Nd6 {[%clk 0:00:50.8]} 34...
Bc6 {[%clk 0:00:35.4]} 35. Qf4 {[%clk 0:00:48.7]} 35... a5 {[%clk 0:00:34.9]}
36. Nxf7 {[%clk 0:00:47.5]} 36... Rxf7 {[%clk 0:00:31.3]} 37. Bxe6 {[%clk
0:00:47.4]} 37... Qe7 {[%clk 0:00:32.3]} 38. Bxf7+ {[%clk 0:00:45]} 38... Qxf7
{[%clk 0:00:33.3]} 39. Qg4 {[%clk 0:00:43.6]} 39... Qd5 {[%clk 0:00:29.9]} 40.
Rc1 {[%clk 0:00:43.7]} 40... Bd7 {[%clk 0:00:26.8]} 41. e6 {[%clk 0:00:43.9]}
41... Qxe6 {[%clk 0:00:26]} 42. Qf3 {[%clk 0:00:41.1]} 42... h5 {[%clk
0:00:25.5]} 43. b3 {[%clk 0:00:37.8]} 43... Kh7 {[%clk 0:00:24.7]} 44. Kh2
{[%clk 0:00:35.1]} 44... Qe5+ {[%clk 0:00:24.6]} 45. Kh1 {[%clk 0:00:35.6]}
45... Bf5 {[%clk 0:00:25.3]} 46. Rf1 {[%clk 0:00:34.8]} 46... Qe4 {[%clk
0:00:25.2]} 47. Qf2 {[%clk 0:00:32.8]} 47... Bxh3 {[%clk 0:00:24.6]} 48. Re1
{[%clk 0:00:31.9]} 48... Qc6 {[%clk 0:00:24.7]} 49. Re7 {[%clk 0:00:29.6]} 49...
Qd5 {[%clk 0:00:15.8]} 50. Ra7 {[%clk 0:00:21.8]} 50... Bxg2+ {[%clk 0:00:10.8]}
51. Qxg2 {[%clk 0:00:21.7]} 51... Qd1+ {[%clk 0:00:11.7]} 52. Kh2 {[%clk
0:00:21.4]} 52... Kh6 {[%clk 0:00:12.4]} 53. Rf7 {[%clk 0:00:20.3]} 53... Be5+
{[%clk 0:00:13]} 54. Kh3 {[%clk 0:00:21.7]} 54... Qd3+ {[%clk 0:00:13.5]} 55.
Qf3 {[%clk 0:00:22.3]} 55... Qxf3+ {[%clk 0:00:13.8]} 56. Rxf3 {[%clk
0:00:24.2]} 56... g5 {[%clk 0:00:15.1]} 57. Rf5 {[%clk 0:00:25.8]} 57... Bf4
{[%clk 0:00:15.3]} 58. Rxa5 {[%clk 0:00:25.9]} 58... Kg6 {[%clk 0:00:16.3]} 59.
Rb5 {[%clk 0:00:26.3]} 59... Bd2 {[%clk 0:00:17.2]} 60. Rd5 {[%clk 0:00:25.8]}
60... g4+ {[%clk 0:00:17.3]} 61. Kg2 {[%clk 0:00:26.6]} 61... Bc3 {[%clk
0:00:17.5]} 62. Rc5 {[%clk 0:00:27.8]} 62... h4 {[%clk 0:00:17.3]} 63. a4 {[%clk
0:00:29]} 63... Bd4 {[%clk 0:00:16.6]} 64. Rc4 {[%clk 0:00:28.3]} 64... h3+
{[%clk 0:00:16.4]} 65. Kg3 {[%clk 0:00:29.7]} 65... Be5+ {[%clk 0:00:16.4]} 66.
Kxg4 {[%clk 0:00:30.5]} 66... h2 {[%clk 0:00:18.3]} 67. Rc1 {[%clk 0:00:31.5]}
67... Bd4 {[%clk 0:00:18.9]} 68. Rh1 {[%clk 0:00:31.9]} 68... Bg1 {[%clk
0:00:19.8]} 69. Kf4 {[%clk 0:00:33.3]} 69... Kf6 {[%clk 0:00:21.7]} 70. Ke4
{[%clk 0:00:34.8]} 70... Ke6 {[%clk 0:00:23.6]} 71. a5 {[%clk 0:00:34.3]} 71...
Kd6 {[%clk 0:00:24.5]} 72. Kd3 {[%clk 0:00:31.1]} 72... Kc5 {[%clk 0:00:25.7]}
73. a6 {[%clk 0:00:32.1]} 73... Kb6 {[%clk 0:00:27]} 74. Kc4 {[%clk 0:00:33]}
74... Kxa6 {[%clk 0:00:28]} 75. Kxb4 {[%clk 0:00:34.4]} 75... Kb6 {[%clk
0:00:29.3]} 76. Kc4 {[%clk 0:00:35.5]} 76... Kc6 {[%clk 0:00:30.5]} 77. b4
{[%clk 0:00:36.9]} 77... Kb6 {[%clk 0:00:31.8]} 78. b5 {[%clk 0:00:38.2]} 78...
Kb7 {[%clk 0:00:32.4]} 79. Kb4 {[%clk 0:00:39.5]} 79... Kb6 {[%clk 0:00:33.3]}
80. Ka4 {[%clk 0:00:40.7]} 80... Kb7 {[%clk 0:00:34.1]} 81. Ka5 {[%clk
0:00:42.4]} 81... Ka7 {[%clk 0:00:35.3]} 82. Ka4 {[%clk 0:00:41.1]} 82... Kb6
{[%clk 0:00:35.1]} 83. Kb4 {[%clk 0:00:43]} 83... Kb7 {[%clk 0:00:36.1]} 84. Kc4
{[%clk 0:00:44.9]} 84... Kb6 {[%clk 0:00:37.4]} 85. Kb4 {[%clk 0:00:42.5]} 85...
Kb7 {[%clk 0:00:38.4]} 86. Ka5 {[%clk 0:00:44.4]} 86... Ka7 {[%clk 0:00:39.4]}
87. b6+ {[%clk 0:00:43.5]} 87... Bxb6+ {[%clk 0:00:39]} 88. Kb5 {[%clk
0:00:45.4]} 88... Bg1 {[%clk 0:00:39.6]} 89. Kc6 {[%clk 0:00:46.7]} 89... Ka6
{[%clk 0:00:40.5]} 90. Rxh2 {[%clk 0:00:47.8]} 90... Bxh2 {[%clk 0:00:41.2]}
1/2-1/2

[Event "*** Titled Tuesday Blitz"]
[Site "Chess.com"]
[Date "2019.08.06"]
[Round "8"]
[White "vpsetter"]
[Black "cancrushyou"]
[Result "1-0"]
[WhiteElo "2644"]
[BlackElo "2507"]
[TimeControl "180+2"]
[EndTime "14:57:48 PDT"]
[Termination "vpsetter won by resignation"]

1. e4 {[%clk 0:02:57.4]} 1... e6 {[%clk 0:02:59.9]} 2. d4 {[%clk 0:02:57.8]}
2... d5 {[%clk 0:03:00.9]} 3. Nc3 {[%clk 0:02:57.3]} 3... Bb4 {[%clk 0:03:01.2]}
4. exd5 {[%clk 0:02:55.9]} 4... exd5 {[%clk 0:02:58.6]} 5. Bd3 {[%clk
0:02:57.3]} 5... Nf6 {[%clk 0:02:58.3]} 6. Ne2 {[%clk 0:02:55.5]} 6... O-O
{[%clk 0:02:58.6]} 7. O-O {[%clk 0:02:55.9]} 7... c6 {[%clk 0:02:56.8]} 8. Ng3
{[%clk 0:02:54]} 8... Re8 {[%clk 0:02:56]} 9. Nce2 {[%clk 0:02:51.5]} 9... Nbd7
{[%clk 0:02:49.5]} 10. c3 {[%clk 0:02:50.6]} 10... Bd6 {[%clk 0:02:38.3]} 11.
Bf4 {[%clk 0:02:48.7]} 11... Nf8 {[%clk 0:02:34.7]} 12. Bxd6 {[%clk 0:02:37.1]}
12... Qxd6 {[%clk 0:02:35.2]} 13. Qc2 {[%clk 0:02:37.7]} 13... Ng6 {[%clk
0:02:31.1]} 14. Rae1 {[%clk 0:02:32.8]} 14... Bd7 {[%clk 0:02:22.5]} 15. Bxg6
{[%clk 0:02:18.7]} 15... hxg6 {[%clk 0:02:22.7]} 16. Nc1 {[%clk 0:02:19.2]}
16... Rxe1 {[%clk 0:02:16]} 17. Rxe1 {[%clk 0:02:19.4]} 17... Re8 {[%clk
0:02:17.1]} 18. Rxe8+ {[%clk 0:02:19.7]} 18... Nxe8 {[%clk 0:02:17.6]} 19. Qe2
{[%clk 0:02:18.9]} 19... Qe6 {[%clk 0:02:15.1]} 20. Nd3 {[%clk 0:02:18]} 20...
Qxe2 {[%clk 0:02:12.9]} 21. Nxe2 {[%clk 0:02:18.5]} 21... f6 {[%clk 0:02:13.1]}
22. f3 {[%clk 0:02:04.7]} 22... Kf7 {[%clk 0:02:12.2]} 23. Kf2 {[%clk
0:02:05.2]} 23... Nd6 {[%clk 0:02:12.7]} 24. g4 {[%clk 0:02:04.1]} 24... g5
{[%clk 0:02:09.8]} 25. Kg3 {[%clk 0:01:59.8]} 25... Bc8 {[%clk 0:02:06.6]} 26.
Nec1 {[%clk 0:01:38.5]} 26... Ke7 {[%clk 0:01:57.1]} 27. Nb3 {[%clk 0:01:38.9]}
27... b6 {[%clk 0:01:52.5]} 28. Nd2 {[%clk 0:01:39.2]} 28... Ba6 {[%clk
0:01:44.5]} 29. Nf2 {[%clk 0:01:39.6]} 29... Nc4 {[%clk 0:01:36.2]} 30. Nxc4
{[%clk 0:01:39.8]} 30... Bxc4 {[%clk 0:01:36.9]} 31. b3 {[%clk 0:01:35.9]} 31...
Be2 {[%clk 0:01:36.4]} 32. f4 {[%clk 0:01:35.5]} 32... Ke6 {[%clk 0:01:24.4]}
33. h4 {[%clk 0:01:35.1]} 33... gxh4+ {[%clk 0:01:22.4]} 34. Kxh4 {[%clk
0:01:35.7]} 34... Bf3 {[%clk 0:01:12.7]} 35. b4 {[%clk 0:01:34.3]} 35... Be2
{[%clk 0:01:12.9]} 36. Nh1 {[%clk 0:01:22.9]} 36... Bf3 {[%clk 0:01:10.8]} 37.
Ng3 {[%clk 0:01:23.6]} 37... g6 {[%clk 0:00:56.1]} 38. f5+ {[%clk 0:01:22.1]}
38... gxf5 {[%clk 0:00:56.2]} 39. Nxf5 {[%clk 0:01:22.8]} 39... Be4 {[%clk
0:00:53.3]} 40. Ng3 {[%clk 0:01:19.5]} 40... Bf3 {[%clk 0:00:54]} 41. Nh5 {[%clk
0:01:19.7]} 41... Kf7 {[%clk 0:00:46.1]} 42. Kg3 {[%clk 0:01:19]} 42... Be4
{[%clk 0:00:47.1]} 43. Kf4 {[%clk 0:01:19.8]} 43... Bg6 {[%clk 0:00:45.9]} 44.
Ng3 {[%clk 0:01:18.1]} 44... Ke6 {[%clk 0:00:46.8]} 45. Nf1 {[%clk 0:00:56.1]}
45... Bd3 {[%clk 0:00:46.5]} 46. Ne3 {[%clk 0:00:55.8]} 46... Bg6 {[%clk
0:00:45.8]} 47. Kg3 {[%clk 0:00:54.6]} 47... Be4 {[%clk 0:00:45.9]} 48. Nd1
{[%clk 0:00:44.6]} 48... Bg6 {[%clk 0:00:43.8]} 49. Nf2 {[%clk 0:00:44.9]} 49...
Bc2 {[%clk 0:00:44.7]} 50. Nh3 {[%clk 0:00:40.7]} 50... Be4 {[%clk 0:00:43.6]}
51. Kh4 {[%clk 0:00:39.3]} 51... Bb1 {[%clk 0:00:36.4]} 52. a3 {[%clk
0:00:39.4]} 52... Bc2 {[%clk 0:00:36.7]} 53. Kh5 {[%clk 0:00:38.4]} 53... Kf7
{[%clk 0:00:36.7]} 54. Nf4 {[%clk 0:00:26.3]} 54... Be4 {[%clk 0:00:37.6]} 55.
Kh6 {[%clk 0:00:23.9]} 55... Bc2 {[%clk 0:00:37.3]} 56. g5 {[%clk 0:00:21.6]}
56... fxg5 {[%clk 0:00:37.8]} 57. Kxg5 {[%clk 0:00:22.1]} 57... Be4 {[%clk
0:00:39.2]} 58. Nh5 {[%clk 0:00:19.9]} 58... Ke7 {[%clk 0:00:31.4]} 59. Kf4
{[%clk 0:00:19.2]} 59... Ke6 {[%clk 0:00:18.9]} 60. Ng3 {[%clk 0:00:13.6]} 60...
Bd3 {[%clk 0:00:19.1]} 61. Nh1 {[%clk 0:00:09.6]} 61... Bc2 {[%clk 0:00:20]} 62.
Nf2 {[%clk 0:00:09.6]} 62... Bb1 {[%clk 0:00:20.3]} 63. Ng4 {[%clk 0:00:08.9]}
63... Bf5 {[%clk 0:00:20.3]} 64. Ne5 {[%clk 0:00:08.9]} 64... c5 {[%clk
0:00:14.8]} 65. dxc5 {[%clk 0:00:06.6]} 65... bxc5 {[%clk 0:00:16.7]} 66. bxc5
{[%clk 0:00:07.8]} 66... Bc2 {[%clk 0:00:17.8]} 67. Nc6 {[%clk 0:00:08.2]} 67...
d4 {[%clk 0:00:09.3]} 68. Nxd4+ {[%clk 0:00:08.4]} 68... Kd5 {[%clk 0:00:10.5]}
69. Nxc2 {[%clk 0:00:07.8]} 69... Kxc5 {[%clk 0:00:12.4]} 1-0

[Event "*** Titled Tuesday Blitz"]
[Site "Chess.com"]
[Date "2019.08.06"]
[Round "8"]
[White "BlitzWizard04"]
[Black "Chigorinetz"]
[Result "1-0"]
[WhiteElo "2512"]
[BlackElo "2597"]
[TimeControl "180+2"]
[EndTime "14:57:52 PDT"]
[Termination "BlitzWizard04 won by resignation"]

1. d4 {[%clk 0:03:01.9]} 1... d5 {[%clk 0:03:00.5]} 2. c4 {[%clk 0:03:02.3]}
2... Nc6 {[%clk 0:03:01.2]} 3. Nf3 {[%clk 0:02:57.4]} 3... Bg4 {[%clk
0:03:01.2]} 4. cxd5 {[%clk 0:02:53.8]} 4... Bxf3 {[%clk 0:03:01.5]} 5. gxf3
{[%clk 0:02:50.7]} 5... Qxd5 {[%clk 0:03:01.1]} 6. e3 {[%clk 0:02:50.9]} 6... e5
{[%clk 0:03:01.8]} 7. Nc3 {[%clk 0:02:51.1]} 7... Bb4 {[%clk 0:03:01.2]} 8. Bd2
{[%clk 0:02:52]} 8... Bxc3 {[%clk 0:03:00.6]} 9. bxc3 {[%clk 0:02:53.5]} 9...
Qd6 {[%clk 0:03:01.6]} 10. Rb1 {[%clk 0:02:41.3]} 10... O-O-O {[%clk 0:03:01.6]}
11. Bd3 {[%clk 0:02:31.8]} 11... Nge7 {[%clk 0:03:00.9]} 12. Qa4 {[%clk
0:02:29.2]} 12... f5 {[%clk 0:02:53.9]} 13. Ke2 {[%clk 0:02:26.5]} 13... Rhf8
{[%clk 0:02:52.6]} 14. Rb5 {[%clk 0:02:22.7]} 14... Nd5 {[%clk 0:02:27.6]} 15.
Rhb1 {[%clk 0:02:19.7]} 15... Nb6 {[%clk 0:02:24.5]} 16. Qb3 {[%clk 0:02:17.5]}
16... f4 {[%clk 0:02:14.5]} 17. Be4 {[%clk 0:01:12.8]} 17... fxe3 {[%clk
0:02:12.6]} 18. fxe3 {[%clk 0:01:14]} 18... exd4 {[%clk 0:02:12.6]} 19. cxd4
{[%clk 0:01:14.4]} 19... Qxh2+ {[%clk 0:02:11.3]} 20. Kd3 {[%clk 0:01:15.1]}
20... Nxd4 {[%clk 0:01:40.9]} 21. exd4 {[%clk 0:01:05.6]} 21... Rxd4+ {[%clk
0:01:41.7]} 22. Kxd4 {[%clk 0:01:04.9]} 22... Rd8+ {[%clk 0:01:40.7]} 23. Rd5
{[%clk 0:00:49.6]} 23... Qxd2+ {[%clk 0:01:31.7]} 24. Kc5 {[%clk 0:00:47.1]}
24... Nxd5 {[%clk 0:01:11.5]} 25. Qxb7+ {[%clk 0:00:47.3]} 25... Kd7 {[%clk
0:01:12]} 26. Qxd5+ {[%clk 0:00:48.2]} 26... Qxd5+ {[%clk 0:01:09.6]} 27. Bxd5
{[%clk 0:00:49.8]} 27... Rf8 {[%clk 0:01:01.9]} 28. Rb7 {[%clk 0:00:41.5]} 28...
h5 {[%clk 0:01:00.8]} 29. Rxa7 {[%clk 0:00:42.5]} 29... Rf5 {[%clk 0:00:57.3]}
30. Ra8 {[%clk 0:00:35.4]} 30... h4 {[%clk 0:00:57.9]} 31. Kd4 {[%clk
0:00:33.6]} 31... Rh5 {[%clk 0:00:54.5]} 32. Rb8 {[%clk 0:00:30.3]} 32... Kd6
{[%clk 0:00:46.5]} 33. Be4 {[%clk 0:00:30]} 33... h3 {[%clk 0:00:45.7]} 34. Rb1
{[%clk 0:00:29.7]} 34... Ra5 {[%clk 0:00:45.1]} 35. Rb2 {[%clk 0:00:26.6]} 35...
g5 {[%clk 0:00:41.9]} 36. Rh2 {[%clk 0:00:25.2]} 36... Ra4+ {[%clk 0:00:34]} 37.
Ke3 {[%clk 0:00:21.6]} 37... g4 {[%clk 0:00:34.8]} 38. fxg4 {[%clk 0:00:21.6]}
38... Ke5 {[%clk 0:00:35.8]} 39. Bf5 {[%clk 0:00:21.7]} 39... Ra3+ {[%clk
0:00:35.1]} 40. Kf2 {[%clk 0:00:22.8]} 40... Kf4 {[%clk 0:00:29.9]} 41. Kg1
{[%clk 0:00:23.5]} 41... Kg3 {[%clk 0:00:21.8]} 42. Rb2 {[%clk 0:00:21.1]} 42...
Ra5 {[%clk 0:00:16.6]} 43. Rb3+ {[%clk 0:00:21.8]} 43... Kf4 {[%clk 0:00:18.5]}
44. a3 {[%clk 0:00:21.3]} 44... c5 {[%clk 0:00:19.1]} 45. Rxh3 {[%clk
0:00:22.1]} 45... Rb5 {[%clk 0:00:18.7]} 46. Rc3 {[%clk 0:00:21.8]} 46... Ke5
{[%clk 0:00:17.8]} 47. a4 {[%clk 0:00:21.6]} 47... Ra5 {[%clk 0:00:17.9]} 48.
Rc4 {[%clk 0:00:21.5]} 48... Kd5 {[%clk 0:00:18.9]} 49. Bd3 {[%clk 0:00:22.6]}
49... Ra7 {[%clk 0:00:19.6]} 50. Rf4 {[%clk 0:00:23.5]} 50... Re7 {[%clk
0:00:19.4]} 51. Bc4+ {[%clk 0:00:22.6]} 51... Ke5 {[%clk 0:00:20.4]} 52. Rf2
{[%clk 0:00:21.4]} 52... Kd4 {[%clk 0:00:21.4]} 53. Rc2 {[%clk 0:00:16.2]} 53...
Re4 {[%clk 0:00:16.1]} 54. Be2 {[%clk 0:00:10.9]} 54... Ke3 {[%clk 0:00:16.9]}
55. a5 {[%clk 0:00:09.8]} 55... c4 {[%clk 0:00:14.7]} 56. a6 {[%clk 0:00:06.9]}
56... c3 {[%clk 0:00:13.5]} 57. Kf1 {[%clk 0:00:05.8]} 57... Rf4+ {[%clk
0:00:10]} 58. Ke1 {[%clk 0:00:06.8]} 58... Ra4 {[%clk 0:00:06.7]} 59. Rxc3+
{[%clk 0:00:07.6]} 59... Kd4 {[%clk 0:00:08.3]} 60. Rc7 {[%clk 0:00:08.4]} 60...
Ke3 {[%clk 0:00:09.9]} 61. Re7+ {[%clk 0:00:09.2]} 61... Kd4 {[%clk 0:00:10.9]}
62. Kf2 {[%clk 0:00:10.5]} 62... Ra3 {[%clk 0:00:09.8]} 63. a7 {[%clk
0:00:11.4]} 63... Kc5 {[%clk 0:00:08.1]} 64. Bf3 {[%clk 0:00:12.3]} 64... Kd6
{[%clk 0:00:08.4]} 65. Rh7 {[%clk 0:00:12.7]} 65... Rxa7 {[%clk 0:00:06.6]} 66.
Rxa7 {[%clk 0:00:12.1]} 1-0